bitfinex/quotes_SOLUSD_20251002
["timestamp","ask_amount","ask_price","bid_price","bid_amount"]
[1759382176416,35.52133502,224.15,224.11,0.68]
[1759382176617,35.52133502,224.15,224.1,100.0]
[1759382176824,35.52133502,224.15,224.11,0.68]
[1759382177140,35.52133502,224.15,224.12,0.68]
[1759382177727,37.86527351,224.15,224.12,0.68]
[1759382178642,37.86527351,224.15,224.1,100.0]
[1759382178843,37.86527351,224.15,224.11,0.68]
[1759382179645,4.46169633,224.13,224.11,0.68]
[1759382179938,6.80563482,224.13,224.1,0.68]
[1759382180245,6.80563482,224.13,224.08,0.68]
[1759382180430,6.80563482,224.13,224.07,100.0]
[1759382180431,6.80563482,224.13,224.09,0.68]
[1759382180633,6.80563482,224.13,224.1,0.68]
[1759382182325,6.80563482,224.13,224.11,0.68]
[1759382183822,2.34393849,224.12,224.09,0.66]
[1759382184026,2.34393849,224.1,224.07,79.2]
[1759382184251,2.34393849,224.11,224.07,79.86]
[1759382184630,2.34393849,224.11,224.08,0.66]
[1759382185249,4.46229361,224.1,224.07,79.2]
[1759382185445,6.8062321,224.1,224.07,79.86]
[1759382186336,33.40393849,224.09,224.07,79.2]
[1759382187139,2.34393849,224.08,224.07,79.2]
[1759382187347,6.80676785,224.08,224.05,79.86]
[1759382188656,6.80676785,224.08,224.06,0.66]
[1759382189030,6.80676785,224.08,224.05,79.2]
[1759382189232,6.80676785,224.08,224.05,79.86]
[1759382189431,2.34393849,224.08,224.05,79.86]
[1759382189632,37.86643823,224.09,224.06,0.66]
[1759382192355,33.40393849,224.09,224.06,0.66]
[1759382192534,37.86658544,224.09,224.06,0.66]
[1759382192738,37.86658544,224.09,224.05,79.2]
[1759382192940,2.34393849,224.07,224.03,79.86]
[1759382193155,31.06,224.06,224.03,79.86]
[1759382193469,31.06,224.06,224.04,0.66]
[1759382194860,33.40393849,224.06,224.04,0.66]
[1759382195043,37.86713983,224.06,224.04,0.66]
[1759382195836,33.40393849,224.06,224.04,0.66]
[1759382197158,37.86705389,224.06,224.04,0.66]
[1759382197364,37.86705389,224.06,224.02,0.66]
[1759382197552,37.86705389,224.06,224.03,0.66]
[1759382198259,33.40393849,224.06,224.01,83.86407287]
[1759382198446,33.40393849,224.06,224.02,0.66]
[1759382198647,37.86704942,224.06,224.01,83.86407287]
[1759382198849,37.86704942,224.06,224.02,0.66]
[1759382199959,2.34393849,224.05,224.02,0.66]
[1759382200278,31.06,224.04,224.02,0.66]
[1759382200646,31.06,224.04,224.03,0.66]
[1759382202869,31.06,224.04,224.01,79.4]
[1759382203168,33.40393849,224.04,224.01,80.06]
[1759382203665,33.40393849,224.04,224.01,79.4]
[1759382203968,33.40393849,224.04,224.02,0.66]
[1759382204380,32.56292619,224.04,224.02,0.66]
[1759382205470,31.06,224.04,224.02,0.66]
[1759382207246,31.06,224.04,224.03,0.66]
[1759382207750,31.06,224.13,224.03,115.38359166]
[1759382207945,31.06,224.13,224.04,0.66]
[1759382208172,31.06,224.13,224.05,31.06]
[1759382208374,31.06,224.13,224.06,0.66]
[1759382208566,31.06,224.11,224.06,0.66]
[1759382208776,32.56292619,224.11,224.07,0.66]
[1759382209173,32.56292619,224.11,224.08,0.66]
[1759382209479,37.02503089,224.11,224.08,0.66]
[1759382211266,32.56292619,224.11,224.08,0.66]
[1759382211470,31.06,224.11,224.08,0.66]
[1759382214575,35.52212585,224.11,224.08,0.7]
[1759382214768,31.06,224.11,224.08,0.7]
[1759382215352,31.06,224.11,224.06,4.46306261]
[1759382215553,31.06,224.11,224.07,0.7]
[1759382215846,31.06,224.11,224.08,0.7]
[1759382216365,11.26371541,224.12,224.08,0.7]
[1759382218287,11.26371541,224.12,224.08,5.1626386]
[1759382218588,11.26371541,224.12,224.09,0.7]
[1759382219186,11.26371541,224.12,224.1,0.7]
[1759382219484,11.26371541,224.12,224.1,79.2]
[1759382220757,11.26371541,224.12,224.1,79.9]
[1759382221387,11.26371541,224.12,224.11,0.7]
[1759382223565,11.26371541,224.12,224.1,79.2]
[1759382224195,15.72561444,224.12,224.1,79.2]
[1759382225268,11.26371541,224.12,224.09,79.9]
[1759382225901,31.06,224.11,224.09,79.9]
[1759382227095,31.06,224.11,224.1,0.7]
[1759382232508,7.46376579,224.16,224.1,5.16229361]
[1759382232681,1.50292619,224.17,224.11,0.7]
[1759382232996,31.06,224.16,224.11,0.7]
[1759382234183,31.06,224.16,224.12,4.46189541]
[1759382234385,31.06,224.16,224.13,0.7]
[1759382235385,31.06,224.16,224.14,0.7]
[1759382235984,31.06,224.16,224.15,0.7]
[1759382236182,11.29915652,224.19,224.15,0.7]
[1759382236380,11.29915652,224.19,224.15,5.16129823]
[1759382236578,31.04,224.18,224.16,0.7]
[1759382237583,31.04,224.18,224.14,0.7]
[1759382237584,32.54292619,224.18,224.14,0.7]
[1759382238495,6.14382639,224.17,224.11,31.04]
[1759382238698,1.50292619,224.15,224.11,21.5]
[1759382239019,1.50292619,224.15,224.12,0.7]
[1759382239780,1.50292619,224.13,224.08,79.9]
[1759382239975,1.50292619,224.11,224.08,79.9]
[1759382240284,32.54292619,224.12,224.08,79.2]
[1759382240490,31.04,224.12,224.09,0.7]
[1759382240687,31.04,224.12,224.1,0.7]
[1759382244181,32.54292619,224.12,224.08,83.66264663]
[1759382244381,32.54292619,224.12,224.08,84.31264663]
[1759382245104,32.54292619,224.12,224.08,79.85]
[1759382246291,1.50292619,224.1,224.08,79.2]
[1759382246487,31.04,224.09,224.08,79.2]
[1759382246884,31.04,224.09,224.08,79.85]
[1759382249083,31.04,224.09,224.08,0.65]
[1759382249496,1.50292619,224.11,224.08,0.65]
[1759382249890,31.04,224.1,224.08,0.65]
[1759382250790,1.50292619,224.11,224.08,0.65]
[1759382250992,31.04,224.1,224.08,0.65]
[1759382251288,31.04,224.1,224.06,79.85]
[1759382251481,31.04,224.1,224.07,0.65]
[1759382251909,31.04,224.1,224.07,79.2]
[1759382252109,31.04,224.1,224.07,79.85]
[1759382252410,35.50229827,224.1,224.07,79.2]
[1759382252986,4.46229827,224.1,224.07,79.2]
[1759382253187,31.04,224.09,224.07,79.2]
[1759382253805,35.50258486,224.09,224.05,0.65]
[1759382254110,32.54292619,224.09,224.06,0.65]
[1759382254613,31.04,224.08,224.06,0.65]
[1759382256598,1.50292619,224.09,224.06,0.65]
[1759382256915,31.04,224.07,224.04,83.66346049]
[1759382257098,31.04,224.07,224.05,0.65]
[1759382257297,1.50292619,224.06,224.04,79.2]
[1759382257615,32.54292619,224.07,224.04,79.85]
[1759382258191,1.50292619,224.06,224.04,79.2]
[1759382259694,37.00596114,224.07,224.04,79.2]
[1759382261211,4.4620945,224.11,224.05,0.65]
[1759382261400,26.76482838,224.12,224.05,0.65]
[1759382261604,31.04,224.1,224.05,0.65]
[1759382262409,31.04,224.1,224.05,5.11318002]
[1759382262607,31.04,224.1,224.06,0.65]
[1759382263121,31.04,224.1,224.05,4.46318002]
[1759382263337,31.04,224.1,224.07,0.65]
[1759382263739,31.04,224.09,224.07,0.65]
[1759382266817,31.04,224.09,224.06,4.46303758]
[1759382266993,31.04,224.09,224.08,0.65]
[1759382275030,6.80900619,224.11,224.08,0.65]
[1759382275244,31.04,224.09,224.08,0.65]
[1759382278633,31.04,224.1,224.08,0.65]
[1759382279013,31.04,224.1,224.09,0.72]
[1759382279925,31.04,224.1,224.06,83.66300694]
[1759382280111,31.04,224.1,224.07,0.72]
[1759382280310,31.04,224.1,224.08,0.72]
[1759382281031,2.34686185,224.11,224.08,0.72]
[1759382281237,31.04,224.1,224.08,0.72]
[1759382282516,31.04,224.1,224.07,4.46286313]
[1759382282713,31.04,224.1,224.08,0.72]
[1759382284946,31.04,224.1,224.09,0.72]
[1759382285117,10.87647521,224.15,224.09,0.72]
[1759382285424,31.04,224.14,224.09,79.92]
[1759382285744,31.04,224.13,224.1,0.72]
[1759382286540,31.04,224.13,224.11,0.72]
[1759382287517,31.04,224.13,224.12,0.72]
[1759382288529,31.04,224.14,224.12,0.72]
[1759382288929,31.04,224.14,224.13,0.72]
[1759382289947,31.04,224.14,224.11,0.72]
[1759382290542,31.04,224.14,224.11,79.92]
[1759382290928,31.04,224.14,224.11,79.2]
[1759382291735,31.04,224.14,224.11,79.92]
[1759382293731,31.04,224.14,224.12,0.72]
[1759382295725,31.04,224.14,224.11,79.2]
[1759382295726,35.50150741,224.14,224.11,79.2]
[1759382295926,35.50150741,224.14,224.11,79.92]
[1759382296257,31.04,224.14,224.11,79.2]
[1759382296548,31.04,224.14,224.12,0.72]
[1759382296955,31.04,224.14,224.13,0.72]
[1759382297942,6.8079617,224.16,224.13,0.72]
[1759382298245,6.8079617,224.16,224.11,83.66202627]
[1759382298246,31.04,224.15,224.11,83.66202627]
[1759382298443,31.04,224.15,224.12,0.72]
[1759382298630,31.04,224.15,224.11,83.66202627]
[1759382298833,31.04,224.15,224.12,0.72]
[1759382299033,31.04,224.15,224.13,0.72]
[1759382300157,31.04,224.15,224.12,0.72]
[1759382300958,31.04,224.15,224.11,83.66202627]
[1759382301139,31.04,224.15,224.13,0.72]
[1759382305459,31.04,224.15,224.11,79.9]
[1759382305635,31.04,224.15,224.12,0.7]
[1759382305956,33.38686185,224.15,224.12,0.7]
[1759382306157,37.84818667,224.15,224.12,0.7]
[1759382307362,2.34686185,224.14,224.11,79.9]
[1759382307568,31.04,224.13,224.11,79.9]
[1759382308071,31.04,224.13,224.11,79.2]
[1759382308245,31.04,224.13,224.12,0.7]
[1759382308870,31.04,224.13,224.11,79.2]
[1759382309167,31.04,224.13,224.11,79.9]
[1759382309346,31.04,224.13,224.12,0.7]
[1759382320142,2.34686185,224.18,224.12,0.7]
[1759382320346,13.64601837,224.19,224.12,115.38189541]
[1759382320563,31.02,224.18,224.13,0.7]
[1759382321065,31.02,224.18,224.13,79.9]
[1759382321255,11.29915652,224.19,224.14,0.7]
[1759382321450,11.29915652,224.19,224.14,110.92]
[1759382321655,11.29915652,224.19,224.15,0.7]
[1759382321872,11.29915652,224.19,224.17,4.4609002]
[1759382322047,11.29915652,224.19,224.18,0.7]
[1759382324479,18.10652062,224.19,224.15,0.7]
[1759382324667,44.66601837,224.19,224.16,0.7]
[1759382324854,44.66601837,224.19,224.14,83.66148077]
[1759382325054,42.31915652,224.19,224.15,0.7]
[1759382325287,42.31915652,224.19,224.16,0.7]
[1759382326377,42.31915652,224.19,224.17,0.7]
[1759382327759,42.31915652,224.19,224.16,79.2]
[1759382328170,42.31915652,224.19,224.16,79.9]
[1759382332278,46.77968154,224.19,224.16,79.2]
[1759382332772,46.77968154,224.19,224.16,79.9]
[1759382334355,48.28035879,224.19,224.16,79.2]
[1759382334555,1.68067725,224.18,224.16,79.2]
[1759382334772,31.02,224.17,224.16,79.2]
[1759382335366,35.4809002,224.17,224.16,79.2]
[1759382338156,35.4809002,224.17,224.14,0.66]
[1759382339168,35.4809002,224.17,224.13,100.0]
[1759382339384,35.4809002,224.17,224.14,0.66]
[1759382340565,35.4809002,224.17,224.15,0.66]
[1759382340767,35.4809002,224.17,224.13,100.0]
[1759382340974,35.4809002,224.17,224.14,0.66]
[1759382342407,35.4809002,224.17,224.15,0.66]
[1759382342764,35.4809002,224.17,224.13,79.2]
[1759382342964,35.4809002,224.17,224.14,0.66]
[1759382343270,31.02,224.16,224.14,0.66]
[1759382343678,31.02,224.16,224.15,0.66]
[1759382344156,11.29915652,224.19,224.15,0.66]
[1759382344781,11.29915652,224.19,224.15,11.95915652]
[1759382344993,11.29915652,224.19,224.16,0.66]
[1759382346762,11.29915652,224.19,224.16,5.12099373]
[1759382346965,11.29915652,224.19,224.17,0.66]
[1759382348300,11.29915652,224.19,224.17,5.1208011]
[1759382348606,11.29915652,224.19,224.18,0.66]
[1759382350787,11.29915652,224.19,224.18,5.12070122]
[1759382351787,11.29915652,224.19,224.18,0.66]
[1759382352967,11.29915652,224.19,224.18,79.86]
[1759382353368,11.29915652,224.19,224.18,84.32070122]
[1759382354794,31.02,224.21,224.18,84.32070122]
[1759382355001,31.02,224.21,224.19,0.66]
[1759382355296,31.02,224.21,224.19,79.86]
[1759382355473,31.02,224.21,224.19,79.2]
[1759382355674,31.02,224.21,224.19,79.86]
[1759382357804,31.02,224.21,224.19,79.2]
[1759382358106,31.02,224.21,224.19,79.86]
[1759382358492,31.02,224.21,224.2,0.66]
[1759382359706,4.45951983,224.24,224.2,0.66]
[1759382359902,31.02,224.23,224.2,0.66]
[1759382360910,31.02,224.23,224.19,83.66049068]
[1759382361207,31.02,224.23,224.21,0.66]
[1759382361582,31.02,224.23,224.19,79.2]
[1759382361782,31.02,224.23,224.2,0.67]
[1759382362082,9.10564633,224.24,224.21,0.67]
[1759382362300,9.10564633,224.24,224.22,0.67]
[1759382363011,9.10564633,224.24,224.23,0.67]
[1759382363180,9.10564633,224.24,224.2,88.30564633]
[1759382363382,9.10564633,224.24,224.2,79.87]
[1759382363792,13.56515575,224.24,224.2,79.87]
[1759382364002,13.56515575,224.24,224.21,0.67]
[1759382365683,9.10564633,224.24,224.2,79.2]
[1759382366016,9.10564633,224.24,224.22,0.67]
[1759382367007,9.10564633,224.24,224.22,5.12988292]
[1759382367208,9.10564633,224.24,224.23,0.67]
[1759382367595,9.10564633,224.24,224.21,0.67]
[1759382367800,9.10564633,224.24,224.22,0.67]
[1759382368401,32.68067725,224.23,224.2,79.2]
[1759382368614,1.68067725,224.22,224.2,79.2]
[1759382368918,32.68067725,224.23,224.2,79.2]
[1759382370617,4.45990545,224.22,224.2,79.2]
[1759382371420,4.63990545,224.22,224.2,79.2]
[1759382372014,4.45990545,224.22,224.2,79.2]
[1759382373918,4.45990545,224.22,224.17,79.87]
[1759382374223,4.45990545,224.22,224.18,0.67]
[1759382374814,10.87647521,224.19,224.14,79.87]
[1759382375116,1.50067725,224.2,224.14,0.67]
[1759382375117,31.0,224.18,224.14,0.67]
[1759382375702,31.0,224.18,224.1,31.0]
[1759382375902,31.0,224.18,224.11,0.67]
[1759382376919,4.4609002,224.17,224.11,0.67]
[1759382378734,4.4609002,224.17,224.11,5.13202566]
[1759382378910,4.4609002,224.17,224.12,0.67]
[1759382379429,31.0,224.18,224.12,0.67]
[1759382379721,31.0,224.18,224.12,79.87]
[1759382379919,4.46062792,224.19,224.13,0.67]
[1759382380105,31.0,224.18,224.13,0.67]
[1759382382126,35.46071546,224.18,224.13,0.67]
[1759382382855,35.46071546,224.18,224.14,0.67]
[1759382383627,35.64071546,224.18,224.12,79.87]
[1759382383820,35.46071546,224.18,224.13,0.67]
[1759382384409,35.46071546,224.18,224.14,0.67]
[1759382385608,35.46071546,224.18,224.14,79.87]
[1759382390014,35.46071546,224.18,224.15,0.67]
[1759382392736,31.0,224.18,224.16,0.67]
[1759382393130,7.46167424,224.21,224.16,0.67]
[1759382393309,31.0,224.2,224.16,0.67]
[1759382395435,35.46040298,224.2,224.16,0.67]
[1759382395628,35.46040298,224.2,224.17,0.66]
[1759382396643,31.0,224.2,224.18,0.66]
[1759382397353,31.0,224.2,224.19,0.66]
[1759382397650,31.0,224.2,224.18,0.66]
[1759382398033,31.0,224.2,224.14,83.66148804]
[1759382398034,31.0,224.2,224.15,4.46113766]
[1759382398224,31.0,224.2,224.19,0.66]
[1759382398422,31.0,224.2,224.17,0.66]
[1759382398820,9.10564633,224.24,224.18,0.66]
[1759382399355,13.56515562,224.24,224.18,0.66]
[1759382400126,13.74515562,224.24,224.18,0.66]
[1759382400384,31.0,224.23,224.18,0.66]
[1759382400952,31.18,224.23,224.18,0.66]
[1759382401344,31.0,224.23,224.19,0.66]
[1759382401747,31.0,224.23,224.17,79.2]
[1759382402069,31.0,224.23,224.18,0.66]
[1759382402268,35.45975287,224.23,224.17,79.2]
[1759382402568,35.45975287,224.23,224.19,0.66]
[1759382402943,35.45975287,224.23,224.17,79.2]
[1759382403254,35.45975287,224.23,224.18,0.66]
[1759382403459,35.45975287,224.23,224.18,79.86]
[1759382403666,35.45975287,224.23,224.19,0.66]
[1759382403960,31.0,224.23,224.2,0.66]
[1759382404669,9.10564633,224.24,224.21,0.66]
[1759382405404,9.10564633,224.24,224.21,5.11992342]
[1759382405535,9.10564633,224.24,224.22,0.66]
[1759382406357,9.10564633,224.24,224.23,20.8]
[1759382406537,0.1,224.33,224.24,20.8]
[1759382406733,0.1,224.33,224.25,0.66]
[1759382407364,4.45791726,224.32,224.26,4.45910996]
[1759382407653,0.1,224.33,224.27,0.66]
[1759382408641,4.55772115,224.33,224.27,0.66]
[1759382411964,4.55772115,224.33,224.27,21.46]
[1759382412367,0.18,224.32,224.27,79.2]
[1759382412555,4.45831475,224.3,224.27,79.2]
[1759382412764,0.18,224.29,224.27,79.2]
[1759382413167,46.60410164,224.3,224.27,79.2]
[1759382414056,48.94929528,224.3,224.27,79.2]
[1759382415068,49.07929528,224.3,224.27,79.2]
[1759382416070,46.73410164,224.3,224.27,79.2]
[1759382416543,46.60410164,224.3,224.27,79.2]
[1759382416744,46.73410164,224.3,224.27,79.2]
[1759382416943,46.60410164,224.3,224.27,79.2]
[1759382418373,46.60410164,224.3,224.25,79.86]
[1759382418572,28.35382564,224.3,224.26,0.66]
[1759382420175,43.95792728,224.3,224.26,0.66]
[1759382423975,32.81214039,224.3,224.27,0.71]
[1759382424385,4.45809082,224.32,224.28,0.71]
[1759382424580,35.45809082,224.32,224.28,0.71]
[1759382424764,0.1,224.33,224.29,31.0]
[1759382424964,0.1,224.33,224.3,0.71]
[1759382425575,0.1,224.33,224.31,31.1]
[1759382425784,0.1,224.33,224.32,0.71]
[1759382429578,0.1,224.33,224.28,0.71]
[1759382429767,0.1,224.33,224.27,31.14]
[1759382429972,0.1,224.33,224.29,0.71]
[1759382430374,0.1,224.33,224.3,0.71]
[1759382431266,4.55771853,224.33,224.3,0.71]
[1759382433291,4.55771853,224.33,224.3,79.91]
[1759382434575,11.00647521,224.32,224.26,0.71]
[1759382434773,2.34519364,224.31,224.26,0.71]
[1759382434996,13.35166885,224.32,224.26,0.71]
[1759382437083,4.458116,224.31,224.26,0.71]
[1759382437290,31.12,224.3,224.26,0.71]
[1759382438300,4.45851353,224.29,224.25,79.2]
[1759382438488,4.45851353,224.29,224.27,0.71]
[1759382438690,4.45851353,224.29,224.25,79.91]
[1759382438894,4.45851353,224.29,224.26,0.71]
[1759382439196,4.45851353,224.29,224.26,79.91]
[1759382439821,4.45851353,224.29,224.27,0.71]
[1759382439974,4.45851353,224.29,224.28,0.71]
[1759382442504,4.45851353,224.29,224.27,0.71]
[1759382443781,4.45851353,224.29,224.26,79.2]
[1759382443982,4.45851353,224.29,224.26,79.91]
[1759382445118,4.45851353,224.29,224.26,0.71]
[1759382447190,11.00647521,224.28,224.22,0.71]
[1759382447391,31.08,224.27,224.22,79.91]
[1759382447611,31.08,224.27,224.22,79.2]
[1759382447816,31.08,224.27,224.23,0.71]
[1759382448127,31.08,224.27,224.23,79.91]
[1759382448128,4.45910996,224.26,224.23,79.91]
[1759382449191,4.45910996,224.26,224.24,0.71]
[1759382449813,4.45910996,224.26,224.23,79.2]
[1759382449988,4.45910996,224.26,224.24,0.71]
[1759382451216,4.45910996,224.26,224.21,0.71]
[1759382451589,4.45910996,224.26,224.22,0.71]
[1759382452209,15.60688486,224.26,224.22,0.71]
[1759382452490,15.60688486,224.26,224.19,79.2]
[1759382452818,15.60688486,224.26,224.2,0.71]
[1759382455606,4.45871232,224.28,224.2,5.1702585]
[1759382455913,35.51871232,224.28,224.22,4.45990545]
[1759382456115,4.45871232,224.28,224.23,0.7]
[1759382457026,4.45871232,224.28,224.23,79.9]
[1759382457321,4.45871232,224.28,224.24,0.7]
[1759382458417,4.45871232,224.28,224.23,79.2]
[1759382458598,4.45871232,224.28,224.24,0.7]
[1759382458915,0.1,224.33,224.24,79.9]
[1759382459120,0.1,224.33,224.26,20.8]
[1759382459616,0.1,224.33,224.27,0.7]
[1759382459817,0.1,224.33,224.28,31.06]
[1759382459996,0.1,224.33,224.29,0.7]
[1759382460718,0.1,224.33,224.29,5.15840889]
[1759382460902,0.1,224.33,224.3,0.7]
[1759382461391,4.557721,224.33,224.29,0.7]
[1759382461597,4.557721,224.33,224.26,0.7]
[1759382463108,0.1,224.33,224.26,5.15900341]
[1759382463314,0.1,224.33,224.27,0.7]
[1759382463511,0.1,224.33,224.31,20.8]
[1759382463705,0.1,224.33,224.32,0.7]
[1759382464113,0.1,224.33,224.32,79.9]
[1759382465201,0.1,224.33,224.32,84.35791726]
[1759382466403,0.1,224.33,224.32,79.9]
[1759382468831,0.1,224.33,224.32,0.7]
[1759382472630,0.1,224.33,224.32,5.15791726]
[1759382474725,0.1,224.33,224.32,84.35791726]
[1759382478444,0.1,224.33,224.32,79.9]
[1759382479927,0.1,224.33,224.32,84.35791726]
[1759382480757,0.1,224.33,224.32,79.9]
[1759382481349,0.1,224.33,224.32,79.2]
[1759382481852,0.1,224.33,224.32,79.89]
[1759382482249,0.1,224.33,224.32,79.2]
[1759382482950,0.1,224.33,224.32,79.89]
[1759382483157,0.1,224.33,224.32,110.95]
[1759382484160,0.1,224.33,224.32,115.40791726]
[1759382487259,0.1,224.33,224.32,110.95]
[1759382491458,0.1,224.33,224.32,110.26]
[1759382492936,0.1,224.33,224.32,79.2]
[1759382497451,4.55771853,224.33,224.32,79.2]
[1759382497852,0.1,224.33,224.32,79.89]
[1759382501583,4.68771853,224.33,224.27,0.69]
[1759382501874,4.55771853,224.33,224.28,0.69]
[1759382502177,4.55771853,224.33,224.26,31.04]
[1759382502389,4.55771853,224.33,224.28,0.69]
[1759382502560,0.13,224.32,224.26,0.69]
[1759382502761,4.458116,224.31,224.26,0.69]
[1759382504248,11.24429634,224.33,224.27,0.69]
[1759382504249,15.33439247,224.32,224.27,0.69]
[1759382504861,15.33439247,224.32,224.28,0.69]
[1759382506179,15.46439247,224.32,224.26,0.69]
[1759382507456,15.46439247,224.32,224.26,79.89]
[1759382507857,15.46439247,224.32,224.26,79.2]
[1759382508185,15.33439247,224.32,224.27,0.69]
[1759382508387,15.46439247,224.32,224.27,0.69]
[1759382509888,15.33439247,224.32,224.28,0.69]
[1759382510187,15.33439247,224.32,224.29,0.69]
[1759382510396,15.33439247,224.32,224.26,83.65910512]
[1759382510560,15.33439247,224.32,224.27,0.69]
[1759382510761,15.33439247,224.32,224.28,0.69]
[1759382510960,15.33439247,224.32,224.29,0.69]
[1759382511184,15.33439247,224.32,224.27,0.69]
[1759382511384,15.33439247,224.32,224.28,0.69]
[1759382511688,4.45791726,224.32,224.28,0.69]
[1759382512069,4.45791726,224.32,224.26,83.65910719]
[1759382512280,4.45791726,224.32,224.29,0.69]
[1759382513472,4.45791726,224.32,224.29,79.89]
[1759382513985,4.45791726,224.32,224.29,79.2]
[1759382514190,4.45791726,224.32,224.29,79.92]
[1759382514691,35.47791726,224.32,224.29,79.92]
[1759382515373,35.47791726,224.32,224.3,0.72]
[1759382515571,35.47791726,224.32,224.29,79.2]
[1759382516085,35.47791726,224.32,224.3,0.72]
[1759382516392,31.02,224.32,224.31,0.72]
[1759382517282,31.02,224.32,224.3,0.72]
[1759382517785,31.02,224.32,224.29,79.2]
[1759382518090,35.55775193,224.33,224.3,0.72]
[1759382518668,35.55775193,224.33,224.29,79.2]
[1759382518869,35.55775193,224.33,224.29,79.92]
[1759382520590,35.55775193,224.33,224.3,0.72]
[1759382522594,35.55775193,224.33,224.29,79.2]
[1759382522780,35.55775193,224.33,224.29,79.92]
[1759382524795,35.55775193,224.33,224.29,79.2]
[1759382524993,35.55775193,224.33,224.3,0.72]
[1759382530696,35.55775193,224.33,224.29,79.2]
[1759382530901,35.55775193,224.33,224.3,0.72]
[1759382531585,0.1,224.33,224.3,79.92]
[1759382531902,0.1,224.33,224.31,31.72]
[1759382532382,0.1,224.33,224.32,0.72]
[1759382535602,0.1,224.33,224.3,79.92]
[1759382535906,0.1,224.33,224.31,0.72]
[1759382536583,4.55781728,224.33,224.3,79.2]
[1759382536808,4.55781728,224.33,224.3,79.92]
[1759382537385,4.55781728,224.33,224.3,79.2]
[1759382538288,4.55781728,224.33,224.3,79.92]
[1759382538603,0.1,224.33,224.31,0.72]
[1759382539502,0.1,224.33,224.3,79.2]
[1759382539696,0.1,224.33,224.32,0.72]
[1759382540100,0.1,224.33,224.3,79.2]
[1759382540304,0.1,224.33,224.3,79.92]
[1759382540606,4.55771853,224.33,224.3,79.2]
[1759382540800,31.02,224.32,224.3,79.2]
[1759382542197,4.458116,224.31,224.3,79.2]
[1759382543113,4.458116,224.31,224.28,79.92]
[1759382543321,4.458116,224.31,224.29,0.66]
[1759382543623,4.458116,224.31,224.28,79.2]
[1759382543813,4.458116,224.31,224.28,79.9]
[1759382543991,4.458116,224.31,224.29,0.7]
[1759382545630,15.603406,224.31,224.28,79.2]
[1759382545913,15.603406,224.31,224.28,0.7]
[1759382546507,18.6099957,224.31,224.28,0.7]
[1759382546809,18.7399957,224.31,224.25,0.7]
[1759382547016,18.6099957,224.31,224.26,0.7]
[1759382547217,18.6099957,224.31,224.27,0.7]
[1759382548214,4.45851353,224.29,224.25,0.7]
[1759382548415,35.47851353,224.29,224.26,0.7]
[1759382548794,35.47851353,224.29,224.27,0.7]
[1759382549102,10.87647521,224.28,224.24,79.2]
[1759382549307,10.87647521,224.28,224.25,0.7]